bitfinex/quotes_SOLUSD_20251118
["timestamp","ask_amount","ask_price","bid_price","bid_amount"]
[1763502202252,4.22,140.42,140.41,0.66]
[1763502204151,18.12096,140.4,140.38,21.41098383]
[1763502204334,4.22,140.39,140.36,0.1]
[1763502204654,27.90978769,140.41,140.37,3.52061943]
[1763502204655,18.12096,140.41,140.37,3.52061943]
[1763502204834,18.12096,140.41,140.38,0.66]
[1763502205038,4.22,140.42,140.38,0.66]
[1763502206236,4.22,140.42,140.39,3.52061943]
[1763502206441,4.22,140.42,140.38,0.66]
[1763502206638,4.22,140.42,140.38,4.18061943]
[1763502206840,4.22,140.42,140.39,0.66]
[1763502211254,0.70831562,140.41,140.39,0.66]
[1763502213741,4.92831562,140.42,140.39,0.66]
[1763502219461,5.59831562,140.42,140.36,10.66185829]
[1763502219765,9.11893505,140.42,140.38,0.66]
[1763502219938,0.67,140.41,140.37,0.66]
[1763502220144,0.70831562,140.4,140.37,0.66]
[1763502220654,4.92831562,140.4,140.37,0.66]
[1763502220962,27.23989505,140.4,140.36,0.1]
[1763502221179,3.52061943,140.38,140.36,0.1]
[1763502221363,35.65040712,140.37,140.36,0.1]
[1763502221544,36.32040712,140.37,140.36,0.1]
[1763502222173,4.22,140.37,140.35,1.93593088]
[1763502222377,0.62,140.45,140.36,0.69]
[1763502222551,4.22893505,140.44,140.38,3.52061943]
[1763502222756,21.64157943,140.43,140.36,4.81785732]
[1763502222971,18.82927562,140.42,140.36,4.21061943]
[1763502223285,18.12096,140.42,140.37,4.21061943]
[1763502223573,18.12096,140.42,140.38,3.52061943]
[1763502223877,18.12096,140.42,140.39,0.69]
[1763502225575,18.12096,140.42,140.39,4.21061943]
[1763502226071,18.12096,140.42,140.4,0.69]
[1763502226481,4.92831562,140.43,140.4,0.69]
[1763502226656,4.22,140.43,140.4,0.69]
[1763502229560,18.82927562,140.44,140.4,0.69]
[1763502233775,22.34989505,140.44,140.4,0.69]
[1763502238887,18.12096,140.42,140.4,0.69]
[1763502239284,18.82927562,140.44,140.4,0.69]
[1763502239594,18.12096,140.42,140.4,0.69]
[1763502240785,18.82927562,140.44,140.4,0.69]
[1763502240987,18.82927562,140.44,140.4,4.21061943]
[1763502241606,18.82927562,140.44,140.41,0.69]
[1763502242088,4.22,140.45,140.41,4.21061943]
[1763502242460,4.22,140.45,140.42,0.69]
[1763502242860,10.40882769,140.5,140.43,3.52061943]
[1763502243094,18.12096,140.47,140.44,0.69]
[1763502243269,8.44893505,140.49,140.44,0.69]
[1763502243596,18.12096,140.48,140.44,0.69]
[1763502243904,8.44893505,140.49,140.44,0.69]
[1763502244367,8.44893505,140.49,140.44,4.21061943]
[1763502244688,26.56989505,140.49,140.44,0.69]
[1763502244862,26.56989505,140.49,140.45,0.69]
[1763502245788,27.18989505,140.49,140.45,0.69]
[1763502246086,23.66927562,140.49,140.45,0.69]
[1763502246293,27.18989505,140.49,140.45,0.69]
[1763502246778,25.92393543,140.49,140.45,0.69]
[1763502248687,23.04927562,140.49,140.45,0.69]
[1763502249001,25.30393543,140.49,140.45,0.69]
[1763502249386,23.04927562,140.49,140.45,0.69]
[1763502249676,20.37561981,140.46,140.42,7.74061943]
[1763502249979,2.25465981,140.44,140.42,7.74061943]
[1763502250366,2.25465981,140.44,140.41,0.69]
[1763502250563,2.25465981,140.44,140.42,0.69]
[1763502251876,4.92831562,140.45,140.38,9.99527924]
[1763502251877,2.25465981,140.43,140.4,0.69]
[1763502252082,2.25465981,140.41,140.35,4.19059069]
[1763502252298,2.25465981,140.4,140.38,0.67]
[1763502257499,2.25465981,140.39,140.36,0.67]
[1763502257687,2.25465981,140.4,140.36,0.67]
[1763502258082,20.37561981,140.41,140.36,0.67]
[1763502258509,2.25465981,140.4,140.36,0.67]
[1763502259000,2.25465981,140.39,140.36,0.67]
[1763502259177,2.25465981,140.37,140.35,1.93593088]
[1763502259380,2.25465981,140.37,140.35,2.60593088]
[1763502260001,2.25465981,140.37,140.36,0.67]
[1763502261301,18.12096,140.36,140.35,1.93593088]
[1763502261490,25.21561981,140.36,140.35,1.93593088]
[1763502262716,40.15129259,140.36,140.35,1.93593088]
[1763502262893,35.0044475,140.36,140.35,1.93593088]
[1763502266402,6.47465981,140.36,140.35,1.93593088]
[1763502266595,6.47465981,140.36,140.35,2.62593088]
[1763502266799,24.59561981,140.36,140.35,1.93593088]
[1763502267189,24.59561981,140.36,140.35,2.62593088]
[1763502268620,22.34096,140.36,140.35,2.62593088]
[1763502269396,25.92393543,140.36,140.35,1.93593088]
[1763502269607,25.30393543,140.36,140.35,1.93593088]
[1763502270505,24.59561981,140.36,140.35,1.93593088]
[1763502270927,4.22,140.36,140.35,2.62593088]
[1763502271516,25.30393543,140.36,140.35,1.93593088]
[1763502272417,23.04927562,140.36,140.35,1.93593088]
[1763502272625,25.30393543,140.36,140.35,1.93593088]
[1763502277822,23.04927562,140.36,140.35,1.93593088]
[1763502278028,23.04927562,140.36,140.35,2.62593088]
[1763502278430,23.04927562,140.36,140.35,1.93593088]
[1763502279334,23.04927562,140.36,140.35,2.62593088]
[1763502279709,23.04927562,140.36,140.35,1.93593088]
[1763502282814,35.71276312,140.36,140.35,1.93593088]
[1763502283312,17.59180312,140.36,140.35,1.93593088]
[1763502291525,9.78882769,140.32,140.3,1.27]
[1763502291737,16.2634875,140.31,140.3,1.27]
[1763502291932,6.47465981,140.31,140.3,1.27]
[1763502292846,4.22,140.31,140.3,1.94]
[1763502295522,6.47465981,140.31,140.3,1.27]
[1763502298426,6.47465981,140.31,140.3,1.94]
[1763502299352,6.47465981,140.31,140.3,1.27]
[1763502299848,4.22,140.31,140.3,1.27]
[1763502300053,6.47465981,140.31,140.3,1.27]
[1763502300551,22.0607722,140.31,140.24,0.77]
[1763502300751,2.25465981,140.25,140.24,0.77]
[1763502300952,24.59561981,140.27,140.24,0.77]
[1763502301166,4.92831562,140.3,140.24,3.02465981]
[1763502301328,7.18297543,140.3,140.24,3.02465981]
[1763502301529,2.25465981,140.29,140.25,0.67]
[1763502302250,7.18297543,140.3,140.25,0.67]
[1763502302450,2.25465981,140.29,140.25,0.67]
[1763502302656,0.70831562,140.28,140.25,0.67]
[1763502303348,21.08393543,140.28,140.25,0.67]
[1763502303555,2.96297543,140.28,140.25,0.67]
[1763502304228,2.25465981,140.26,140.25,0.67]
[1763502304629,2.25465981,140.26,140.24,0.1]
[1763502304847,2.25465981,140.26,140.24,0.77]
[1763502305037,6.47465981,140.27,140.24,0.77]
[1763502306049,4.22,140.27,140.24,0.77]
[1763502306748,6.47465981,140.27,140.24,0.77]
[1763502307058,7.75389164,140.27,140.24,0.77]
[1763502308043,4.22,140.27,140.24,0.77]
[1763502308761,0.70831562,140.28,140.24,0.77]
[1763502310349,4.24220726,140.28,140.24,0.77]
[1763502313340,0.70831562,140.28,140.24,0.77]
[1763502313540,4.24220726,140.28,140.24,0.77]
[1763502313743,0.70831562,140.28,140.24,0.77]
[1763502313965,4.24220726,140.28,140.24,0.77]
[1763502314863,0.62,140.27,140.24,0.1]
[1763502315057,13.32271933,140.25,140.24,0.1]
[1763502315455,10.40882769,140.25,140.24,0.1]
[1763502315662,13.94271933,140.25,140.24,0.1]
[1763502317048,38.88661097,140.25,140.24,0.1]
[1763502317257,27.90978769,140.21,140.14,0.72]
[1763502317462,4.22,140.2,140.15,3.53389164]
[1763502317969,4.22,140.2,140.16,0.72]
[1763502318316,25.87485164,140.2,140.16,0.72]
[1763502318637,3.53389164,140.18,140.16,0.72]
[1763502319041,3.53389164,140.19,140.16,0.72]
[1763502320344,25.87485164,140.2,140.16,0.72]
[1763502322775,4.24220726,140.22,140.16,4.25389164]
[1763502322967,4.24,140.21,140.17,0.71]
[1763502323167,4.94831562,140.22,140.17,4.24389164]
[1763502323573,4.94831562,140.22,140.18,4.24389164]
[1763502324078,4.94831562,140.22,140.19,0.71]
[1763502334588,4.24,140.22,140.19,4.24389164]
[1763502334795,4.24220726,140.25,140.2,0.71]
[1763502334965,4.24,140.23,140.2,0.71]
[1763502336000,4.24,140.23,140.2,4.24389164]
[1763502336301,4.24,140.23,140.2,0.71]
[1763502336604,4.24,140.23,140.21,0.71]
[1763502339021,4.94831562,140.25,140.21,0.71]
[1763502339592,0.70831562,140.25,140.21,0.71]
[1763502339819,4.94831562,140.25,140.21,0.71]
[1763502340497,4.94831562,140.25,140.22,3.53389164]
[1763502340698,4.24,140.27,140.23,3.53389164]
[1763502341206,4.24,140.27,140.24,4.24389164]
[1763502341419,4.24,140.27,140.25,0.71]
[1763502344629,0.70831562,140.3,140.25,0.71]
[1763502344832,4.94831562,140.3,140.26,3.53389164]
[1763502345194,4.94831562,140.3,140.27,0.69]
[1763502345805,23.06927562,140.3,140.27,0.69]
[1763502349413,4.94831562,140.3,140.27,0.69]
[1763502349616,23.06927562,140.3,140.27,0.69]
[1763502350028,4.94831562,140.3,140.27,0.69]
[1763502350916,4.24,140.3,140.27,0.69]
[1763502351715,0.70831562,140.31,140.27,0.69]
[1763502352046,4.92831562,140.31,140.27,4.22389164]
[1763502352536,4.92831562,140.31,140.28,0.69]
[1763502353954,0.70831562,140.31,140.28,0.69]
[1763502354134,0.70831562,140.32,140.28,0.69]
[1763502354849,4.24220726,140.32,140.28,0.69]
[1763502355207,4.86220726,140.32,140.28,0.69]
[1763502355904,0.62,140.31,140.26,4.24]
[1763502356104,3.53389164,140.27,140.23,0.69]
[1763502356411,4.22,140.26,140.23,0.69]
[1763502356627,7.75389164,140.26,140.23,0.69]
[1763502357506,4.22,140.26,140.23,0.69]
[1763502361534,7.75389164,140.26,140.23,0.69]
[1763502361729,4.22,140.26,140.23,0.69]
[1763502362234,0.70831562,140.27,140.25,3.53389164]
[1763502362538,4.24,140.3,140.25,3.53389164]
[1763502362745,4.24,140.29,140.26,0.69]
[1763502362917,4.24,140.29,140.27,3.53389164]
[1763502363124,4.24,140.3,140.27,3.53389164]
[1763502363325,4.24,140.3,140.28,0.69]
[1763502363819,4.22,140.31,140.28,0.69]
[1763502364037,4.22,140.31,140.28,4.22389164]
[1763502364233,0.70831562,140.33,140.28,4.22389164]
[1763502364420,4.94831562,140.33,140.29,0.69]
[1763502366241,8.48220726,140.33,140.29,0.69]
[1763502366444,4.24220726,140.33,140.29,0.69]
[1763502366615,4.22,140.32,140.29,0.69]
[1763502366815,0.70831562,140.31,140.29,0.69]
[1763502368009,4.92831562,140.32,140.29,0.69]
[1763502368214,7.18824537,140.32,140.29,0.69]
[1763502368438,7.18824537,140.32,140.29,2.94992975]
[1763502368439,4.22,140.32,140.29,2.94992975]
[1763502368839,4.22,140.32,140.3,0.69]
[1763502371616,2.25992975,140.35,140.3,0.69]
[1763502371816,4.92831562,140.34,140.3,0.69]
[1763502373535,18.12096,140.37,140.3,0.69]
[1763502373536,4.84,140.36,140.3,0.69]
[1763502373736,0.70831562,140.35,140.3,2.94992975]
[1763502373940,0.70831562,140.35,140.31,5.56]
[1763502374445,0.70831562,140.35,140.32,0.72]
[1763502374658,1.32831562,140.35,140.32,0.72]
[1763502375454,3.58824537,140.35,140.31,0.72]
[1763502376640,0.70831562,140.36,140.31,2.97992975]
[1763502376845,0.70831562,140.36,140.32,0.72]
[1763502377033,0.70831562,140.36,140.32,3.57744901]
[1763502377545,3.58824537,140.36,140.32,0.72]
[1763502377936,0.62,140.35,140.32,0.72]
[1763502378134,0.70831562,140.34,140.32,0.72]
[1763502378459,0.70831562,140.35,140.32,0.72]
[1763502378644,0.70831562,140.36,140.32,0.72]
[1763502379143,1.32831562,140.36,140.32,0.72]
[1763502379739,3.58824537,140.36,140.32,0.72]
[1763502380152,2.96824537,140.36,140.32,0.72]
[1763502380355,2.25992975,140.35,140.32,0.72]
[1763502382373,1.32831562,140.34,140.3,4.22]
[1763502382575,2.25992975,140.32,140.29,0.7]
[1763502382885,2.25992975,140.3,140.27,0.7]
[1763502383275,0.70831562,140.32,140.27,0.7]
[1763502383458,2.25992975,140.31,140.27,0.7]
[1763502385259,2.25992975,140.31,140.27,5.54]
[1763502385475,2.25992975,140.31,140.28,0.7]
[1763502386770,2.25992975,140.3,140.28,0.7]
[1763502386974,2.25992975,140.29,140.26,0.7]
[1763502387176,2.25992975,140.29,140.25,0.7]
[1763502387552,2.25992975,140.29,140.26,4.22]
[1763502387753,2.25992975,140.27,140.26,4.22]
[1763502387954,2.25992975,140.27,140.23,0.7]
[1763502388169,2.25992975,140.25,140.23,0.7]
[1763502388753,2.25992975,140.26,140.23,0.7]
[1763502388974,2.25992975,140.27,140.23,0.7]
[1763502389677,4.22,140.31,140.24,2.25992975]
[1763502389884,2.25992975,140.28,140.24,12.76740225]
[1763502390179,2.25992975,140.28,140.25,0.7]
[1763502390872,4.92831562,140.3,140.25,0.7]
[1763502391269,7.80824537,140.3,140.26,12.76740225]
[1763502391479,7.18824537,140.3,140.26,12.76740225]
[1763502391662,2.25992975,140.29,140.26,13.46740225]
[1763502391852,2.25992975,140.29,140.27,0.7]
[1763502396860,7.18824537,140.3,140.27,0.7]
[1763502398676,4.92831562,140.3,140.27,0.7]
[1763502399069,4.22,140.3,140.27,2.95992975]
[1763502399481,4.22,140.3,140.28,0.7]
[1763502400171,0.70831562,140.32,140.28,0.7]
[1763502400381,4.92831562,140.32,140.28,0.7]
[1763502406196,2.25992975,140.3,140.26,0.7]
[1763502406374,6.47992975,140.29,140.26,0.7]
[1763502407097,5.97992975,140.29,140.26,0.7]
[1763502408296,4.22,140.29,140.26,0.7]
[1763502410694,6.47992975,140.29,140.26,0.7]
[1763502412215,4.22,140.29,140.26,0.7]
[1763502412379,2.96824537,140.31,140.26,0.7]
[1763502412577,4.22,140.3,140.26,0.7]
[1763502413483,2.96824537,140.31,140.26,0.7]
[1763502413685,4.22,140.3,140.26,0.7]
[1763502414113,6.47992975,140.3,140.26,0.7]
[1763502414279,0.70831562,140.29,140.26,0.7]
[1763502415073,2.96824537,140.29,140.26,0.7]
[1763502415273,2.25992975,140.28,140.24,0.7]
[1763502415580,2.25992975,140.25,140.21,0.7]
[1763502417378,2.25992975,140.24,140.21,0.7]
[1763502417598,2.25992975,140.25,140.21,0.7]
[1763502418304,2.25992975,140.23,140.16,2.25992975]
[1763502418509,2.25992975,140.22,140.17,0.7]
[1763502420176,2.87992975,140.22,140.17,0.7]
[1763502420383,2.25992975,140.2,140.17,0.7]
[1763502420692,2.25992975,140.19,140.12,3.73017007]
[1763502420889,2.25992975,140.19,140.16,0.7]
[1763502422014,4.22,140.2,140.16,0.7]
[1763502422207,6.47992975,140.2,140.16,0.7]
[1763502422584,2.25992975,140.19,140.16,0.7]
[1763502423425,6.47992975,140.2,140.16,0.7]
[1763502426801,7.75773853,140.2,140.16,0.7]
[1763502427508,4.22,140.2,140.16,0.7]
[1763502427893,3.53773853,140.23,140.17,3.53773853]
[1763502428096,3.53773853,140.25,140.19,3.53773853]
[1763502428297,4.22,140.24,140.19,3.53773853]
[1763502428496,4.22,140.24,140.2,0.7]
[1763502431415,4.22,140.24,140.2,4.23773853]
[1763502431925,4.22,140.24,140.2,0.7]
[1763502432109,4.22,140.24,140.21,0.7]
[1763502433431,3.53773853,140.23,140.19,0.72]
[1763502433717,3.53773853,140.23,140.15,3.53773853]
[1763502433718,3.53773853,140.21,140.15,3.53773853]
[1763502434020,3.53773853,140.21,140.18,0.72]
[1763502434392,3.71312515,140.21,140.18,0.72]
[1763502435004,0.70831562,140.21,140.18,0.72]
[1763502435626,4.92831562,140.21,140.18,0.72]
[1763502437030,5.54831562,140.21,140.17,0.72]
[1763502437326,4.92831562,140.21,140.17,0.72]
[1763502438898,4.15773853,140.2,140.15,0.72]
[1763502439127,3.53773853,140.19,140.15,0.72]
[1763502439331,4.15773853,140.19,140.15,0.72]
[1763502439919,0.62,140.23,140.17,3.53773853]
[1763502440104,26.51869853,140.23,140.18,0.72]
[1763502440430,0.70831562,140.22,140.18,0.72]
[1763502440615,4.24605415,140.22,140.18,0.72]
[1763502440930,4.86605415,140.22,140.18,0.72]
[1763502444243,18.12096,140.23,140.19,3.53773853]
[1763502444411,4.24,140.24,140.2,0.71]
[1763502444609,4.24,140.24,140.2,4.24773853]
[1763502445043,4.24,140.24,140.21,0.71]
[1763502450821,0.70831562,140.25,140.21,0.71]
[1763502451023,4.94831562,140.25,140.21,0.71]
[1763502452232,8.48605415,140.25,140.21,0.71]
[1763502452937,9.10605415,140.25,140.21,0.71]
[1763502453340,4.15773853,140.24,140.19,4.24773853]
[1763502453508,4.24605415,140.23,140.17,3.53773853]
[1763502453714,4.86605415,140.23,140.18,0.71]
[1763502453913,3.53773853,140.22,140.18,0.71]
[1763502454112,4.86605415,140.23,140.18,0.71]
[1763502455456,3.53773853,140.2,140.15,0.71]
[1763502455616,3.53773853,140.2,140.16,0.71]
[1763502455949,3.53773853,140.2,140.18,18.12096]
[1763502456134,4.15773853,140.21,140.16,0.71]
[1763502456309,4.15773853,140.21,140.16,18.83096]
[1763502456508,22.96096,140.22,140.16,18.83096]
[1763502456730,22.96096,140.22,140.17,0.71]
[1763502456731,3.53773853,140.21,140.17,0.71]
[1763502457316,4.15773853,140.21,140.17,0.71]
[1763502457651,3.53773853,140.2,140.17,0.71]
[1763502457819,4.15773853,140.2,140.17,0.71]
[1763502458136,4.15773853,140.2,140.13,3.53773853]
[1763502458137,4.24,140.19,140.16,0.71]
[1763502459011,7.77773853,140.19,140.16,0.71]
[1763502460438,4.24,140.19,140.16,0.71]
[1763502462754,7.77773853,140.19,140.16,0.71]
[1763502463643,4.15773853,140.18,140.14,18.12096]
[1763502463819,3.53773853,140.17,140.14,18.12096]
[1763502464019,3.53773853,140.17,140.14,18.79096]
[1763502464225,18.12096,140.18,140.14,0.67]
[1763502464435,4.24,140.16,140.14,0.67]
[1763502464636,4.24,140.16,140.13,0.67]
[1763502465832,4.24,140.17,140.13,0.67]
[1763502466341,4.24,140.17,140.13,4.91]
[1763502466846,4.24,140.17,140.14,0.67]
[1763502467534,8.39773853,140.17,140.14,0.67]
[1763502467736,7.77773853,140.17,140.14,0.67]
[1763502467930,8.39773853,140.17,140.12,4.24]
[1763502468148,8.39773853,140.17,140.13,0.67]
[1763502469338,4.15773853,140.17,140.13,0.67]
[1763502469540,3.53773853,140.17,140.13,0.67]
[1763502471720,8.48605415,140.18,140.13,0.67]
[1763502472124,4.94831562,140.18,140.13,0.67]
[1763502472752,9.10605415,140.18,140.13,0.67]
[1763502474553,5.56831562,140.18,140.13,0.67]
[1763502474723,9.10605415,140.18,140.13,0.67]
[1763502475853,8.48605415,140.18,140.13,0.67]
[1763502476054,0.70831562,140.2,140.15,3.53773853]
[1763502476239,4.94831562,140.2,140.15,3.53773853]
[1763502476559,4.94831562,140.2,140.16,0.67]
[1763502477458,5.56831562,140.2,140.16,0.67]
[1763502478159,9.10605415,140.2,140.16,0.67]
[1763502480458,8.48605415,140.2,140.14,9.78882769]
[1763502480660,0.62,140.19,140.14,9.78882769]
[1763502480971,0.70831562,140.18,140.14,9.78882769]
[1763502481161,7.77773853,140.17,140.13,0.67]
[1763502481349,7.77773853,140.17,140.12,0.67]
[1763502481350,3.53773853,140.15,140.12,0.67]
[1763502481948,3.53773853,140.15,140.09,8.49773853]
[1763502482150,4.86,140.14,140.1,0.67]
[1763502482462,7.77773853,140.14,140.1,0.67]
[1763502482649,4.24,140.14,140.1,0.67]
[1763502484054,0.70831562,140.18,140.13,3.53773853]
[1763502484257,8.48605415,140.19,140.14,0.67]
[1763502484866,4.94831562,140.19,140.14,4.20773853]
[1763502485247,4.94831562,140.19,140.15,0.67]
[1763502485674,5.63831562,140.19,140.15,0.1005]
[1763502485845,5.63831562,140.19,140.14,0.53066053]
[1763502486167,9.17605415,140.19,140.13,6.80154306]
[1763502486343,9.17605415,140.19,140.13,3.53773853]
[1763502487660,9.17605415,140.19,140.14,0.67]
[1763502488055,0.69,140.18,140.14,0.67]
[1763502490571,0.69,140.18,140.09,0.1]
[1763502490572,20.38541711,140.15,140.09,0.1]
[1763502490780,2.26445711,140.1,140.09,0.1]
[1763502491009,6.50445711,140.1,140.09,0.1]
[1763502491276,7.19445711,140.1,140.09,0.1]
[1763502493177,4.93,140.1,140.09,0.1]
[1763502493363,7.19445711,140.1,140.09,0.1]
[1763502494179,7.19445711,140.1,140.06,1.93593088]
[1763502494390,18.12096,140.07,140.06,0.84593088]
[1763502494606,34.4142448,140.07,140.06,0.84593088]
[1763502495288,9.78882769,140.08,140.06,0.84593088]
[1763502495491,2.26445711,140.07,140.06,0.84593088]
[1763502495662,4.24,140.07,140.06,0.84593088]
[1763502495866,6.50445711,140.07,140.06,0.84593088]
[1763502497062,4.24,140.07,140.06,1.54593088]
[1763502497271,24.62541711,140.07,140.06,0.84593088]
[1763502497574,32.14978769,140.07,140.06,0.84593088]
[1763502497982,34.4142448,140.07,140.06,0.84593088]
[1763502498407,32.14978769,140.07,140.06,0.84593088]
[1763502498566,24.62541711,140.07,140.06,0.84593088]
[1763502500498,22.36096,140.07,140.06,0.84593088]
[1763502500704,24.62541711,140.07,140.06,0.84593088]
[1763502501410,22.36096,140.07,140.06,0.84593088]
[1763502501696,24.62541711,140.07,140.06,0.84593088]
[1763502505707,6.50445711,140.07,140.06,0.84593088]
[1763502506213,7.21277273,140.07,140.06,0.84593088]
[1763502507288,7.21277273,140.07,140.06,1.56593088]
[1763502507482,6.50445711,140.07,140.06,1.56593088]
[1763502507803,6.50445711,140.07,140.06,0.84593088]
[1763502509025,6.50445711,140.07,140.06,1.56593088]
[1763502509390,6.50445711,140.07,140.06,0.84593088]
[1763502511316,7.21277273,140.07,140.06,0.84593088]
[1763502514243,17.00160042,140.07,140.06,0.84593088]
[1763502514434,17.00160042,140.07,140.03,0.1]
[1763502514435,18.12096,140.04,140.03,0.1]
[1763502514606,25.33373273,140.04,140.03,0.1]
[1763502514808,18.12096,140.01,140.0,10.0]
[1763502515116,24.62541711,140.01,140.0,10.0]
[1763502516043,11.38918503,140.06,140.0,12.98445711]
[1763502516044,0.70831562,140.05,140.0,12.98445711]
[1763502516335,4.04,140.05,140.01,2.98445711]
[1763502516743,4.04,140.05,140.02,0.72]
[1763502519425,4.74831562,140.05,140.02,0.72]
[1763502520352,4.04,140.05,140.03,2.26445711]
[1763502520557,4.04,140.05,140.02,2.98445711]
[1763502520753,4.04,140.05,140.02,0.72]
[1763502520929,4.04,140.05,140.03,0.72]
[1763502524548,4.04,140.05,140.0,10.0]
[1763502524549,1.39831562,140.04,140.0,10.0]
[1763502524750,18.12096,140.02,140.01,0.71]
[1763502524967,0.70831562,140.02,140.01,0.71]
[1763502525278,0.70831562,140.02,140.0,10.71]
[1763502525970,0.70831562,140.03,140.0,10.71]
[1763502530650,0.70831562,140.03,140.0,10.0]
[1763502530848,0.70831562,140.03,140.01,0.71]
[1763502531045,5.90826825,140.13,140.02,2.26445711]
[1763502531263,5.90826825,140.13,140.01,4.95]
[1763502531264,0.69,140.12,140.07,2.26445711]
[1763502531447,4.93,140.12,140.08,2.26445711]
[1763502531642,23.05096,140.12,140.07,0.71]
[1763502531855,0.69,140.11,140.07,2.97445711]
[1763502532379,4.24,140.12,140.07,2.26445711]
[1763502532556,4.93,140.12,140.08,0.71]
[1763502532875,0.69,140.11,140.07,2.97445711]
[1763502533970,0.69,140.11,140.07,0.71]
[1763502534157,0.69,140.11,140.03,4.24]
[1763502534346,0.69,140.11,140.06,0.71]
[1763502534550,0.69,140.11,140.07,2.26445711]
[1763502534877,2.26445711,140.08,140.03,2.26445711]
[1763502535167,2.26445711,140.08,140.02,0.71]
[1763502535168,2.26445711,140.07,140.02,0.71]
[1763502535365,2.95445711,140.07,140.02,2.97445711]
[1763502536463,6.50445711,140.08,140.03,2.97445711]
[1763502536874,23.05096,140.08,140.04,6.61542926]
[1763502537071,4.24,140.08,140.05,5.90542926]
[1763502537252,6.59542926,140.12,140.07,5.90542926]
[1763502537454,4.93,140.11,140.07,5.90542926]
[1763502540354,4.24,140.11,140.08,6.61542926]
[1763502540684,4.24,140.11,140.08,5.90542926]
[1763502540855,4.24,140.11,140.09,5.90542926]
[1763502541378,4.24,140.11,140.08,5.90542926]
[1763502542147,4.24,140.11,140.08,0.71]
[1763502542483,4.93,140.13,140.09,0.71]
[1763502542682,4.93,140.13,140.09,6.61542926]
[1763502544683,4.93,140.13,140.11,5.90542926]
[1763502544684,4.24,140.13,140.11,5.90542926]
[1763502544887,6.59542926,140.16,140.12,5.90542926]
[1763502544888,0.69,140.16,140.12,5.90542926]
[1763502545080,4.24,140.16,140.13,5.90542926]
[1763502545282,22.36096,140.16,140.13,5.90542926]
[1763502545464,4.24,140.16,140.13,6.61542926]
[1763502545785,4.24,140.16,140.14,6.61542926]
[1763502546958,0.2,140.2,140.15,5.90542926]
[1763502547167,0.2,140.2,140.16,0.71]
[1763502547394,4.44,140.2,140.17,5.90542926]
[1763502547587,5.13,140.2,140.17,5.90542926]
[1763502547765,5.13,140.2,140.16,6.61542926]
[1763502549084,5.13,140.2,140.17,5.90542926]
[1763502549483,4.44,140.2,140.17,6.61542926]
[1763502549684,4.44,140.2,140.19,5.90542926]
[1763502549869,0.2,140.2,140.19,5.90542926]
[1763502550690,0.2,140.2,140.19,6.61542926]
[1763502550898,0.2,140.2,140.19,10.55788875]
[1763502551969,0.2,140.2,140.18,9.84788875]
[1763502552189,0.2,140.2,140.17,10.55788875]
[1763502552692,0.68,140.19,140.15,9.84788875]
[1763502552895,0.68,140.19,140.14,10.50788875]
[1763502553089,4.92,140.19,140.14,10.50788875]
[1763502553268,14.76788875,140.19,140.14,10.50788875]
[1763502553581,0.68,140.18,140.14,10.50788875]
[1763502555987,0.68,140.18,140.15,9.84788875]
[1763502556300,0.2,140.2,140.17,9.84788875]
[1763502556472,0.2,140.2,140.17,10.50788875]
[1763502557298,0.2,140.2,140.18,10.50788875]
[1763502558790,0.88,140.2,140.15,23.02096]
[1763502559004,0.2,140.2,140.17,9.84788875]
[1763502559395,0.2,140.2,140.17,10.50788875]
[1763502559773,0.68,140.19,140.15,9.84788875]